Cogmind - Beta 17 @@@ ROGUE MODE // 2026.07.02 @ 19:32:05 Player: szymekc Result: Self-destructed Performance ------------- Evolutions (1) 500 Regions Visited (2) 400 Robots Destroyed (20) 100 Value Destroyed (400) 400 Prototype IDs (3) 60 Alien Tech Used (0) 0 Bonus (5000) 5000 TOTAL SCORE: 6460 Bonus ------- Prayed to X0-1V1 5000 Cogmind --------- Core Integrity 400/400 Matter 168/300 Energy 250/250 System Corruption 0% Temperature Cool (0) Movement Treading (160) Location -9/Materials Parts ------- > --- POWER (1) -------- Ion Engine > --- PROPULSION (3) --- Light Treads Light Treads Light Treads > --- UTILITY (2) ------ Large Storage Unit X0-1V1's Piety Tracker > --- WEAPON (3) ------- Assault Rifle Light Assault Rifle Light Assault Rifle > --- INVENTORY (15) --- Ion Engine Light Treads Light Treads High-capacity Storage Unit Huge Storage Unit Seismic Detector Light Cannon Grenade Launcher Grenade Launcher Mining Laser Peak State ------------ > --- POWER ------------ Ion Engine > --- PROPULSION ------- Light Treads Light Treads Light Treads > --- UTILITY ---------- Large Storage Unit X0-1V1's Piety Tracker > --- WEAPON ----------- Assault Rifle Light Assault Rifle Light Assault Rifle > --- INVENTORY -------- Ion Engine Light Treads Light Treads High-capacity Storage Unit Huge Storage Unit Seismic Detector Light Cannon Grenade Launcher Grenade Launcher Mining Laser [Rating: 22] Favorites ----------- Power Ion Engine Engine Ion Engine Propulsion Light Treads Treads Light Treads Utility Seismic Detector Device Seismic Detector Storage Large Storage Unit Weapon Light Assault Rifle Ballistic Gun Light Assault Rifle Launcher Grenade Launcher Build | -11 -10 -9 ------- Run | Yrd Mat Mat Slots Evolved 2 | . . 2 Power . | . . . Propulsion 1 | . . 1 Utility . | . . . Weapon 1 | . . 1 Parts Attached 16 | 8 6 2 Power 3 | 2 1 . Engine 3 | 2 1 . Core . | . . . Reactor . | . . . Propulsion 3 | 2 . 1 Treads 3 | 2 . 1 Leg . | . . . Wheel . | . . . Hover . | . . . Flight . | . . . Utility 6 | 2 4 . Device 4 | 2 2 . Storage 2 | . 2 . Processor . | . . . Hackware . | . . . Protection . | . . . Artifact . | . . . Weapon 4 | 2 1 1 Energy Gun . | . . . Energy Cannon . | . . . Ballistic Gun 3 | 2 . 1 Ballistic Cannon . | . . . Launcher 1 | . 1 . Special Weapon . | . . . Impact Weapon . | . . . Slashing Weapon . | . . . Piercing Weapon . | . . . Special Melee Weapon . | . . . Unidentified Prototypes 1 | . 1 . Parts Lost 1 | . 1 . Power . | . . . Propulsion . | . . . Utility 1 | . 1 . Weapon . | . . . Highest Loss Streak 1 | . 1 . To Critical Strikes . | . . . Average Backups 6 | 1 7 10 Power . | . 1 1 Propulsion 1 | . 1 2 Utility 1 | . 1 3 Weapon 2 | . 3 4 Tool/Special . | . . . Unused Backups 8 | . . 8 Power 1 | . . 1 Propulsion 2 | . . 2 Utility 2 | . . 2 Weapon 3 | . . 3 Tool/Special . | . . . Average Slot Usage (%) 99 | . 99 96 Engine 13 | . 14 11 Treads 28 | . 28 33 Device 14 | . 14 11 Storage 12 | . 12 11 Ballistic Gun 27 | . 27 29 Peak Build Rating 22 | 9 20 22 Average Rating 10 | 5 10 21 On Entrance 9 | . 9 20 Avg Prop Armor Cover (%) . | . . . Naked Turns . | . . . Heaviest Build 30 | 10 29 30 Greatest Support 60 | 40 40 60 Greatest Overweight (x) . | . . . Average Overweight (x) . | . . . Largest Inventory Capacity 15 | 5 15 15 Average Capacity 11 | 5 12 15 Most Carried 12 | 3 12 11 Average Carried 7 | 1 7 10 Final Capacity 15 | 5 15 15 Final Carried 12 | 2 12 10 Class Distribution -------------------- 97% | Mutant Dominant Class ---------------- Mutant | -10/Materials Gunner | -9/Materials Resources | -11 -10 -9 ----------- Run | Yrd Mat Mat Matter Collected 520 | 257 263 . Remotely . | . . . Salvage Created 456 | 114 342 . Parts 39 | 12 27 . Haulers Intercepted 1 | . 1 . Recyclers Shooed 2 | 2 . . Parts Field Recycled . | . . . Retrieved Matter . | . . . Parts Self-Destructed . | . . . Prevented . | . . . Parts Restored . | . . . Kills | -11 -10 -9 ------- Run | Yrd Mat Mat Combat Hostiles Destroyed 11 | . 11 . Guns 4 | . 4 . AOE 7 | . 7 . Classes Destroyed 8 | 2 6 . Worker 2 | . 2 . Builder 1 | . 1 . Tunneler 3 | 3 . . Hauler 1 | . 1 . Recycler 1 | 1 . . Watcher 1 | . 1 . Swarmer 3 | . 3 . Grunt 8 | . 8 . Best Kill Streak 4 | 3 4 . Combat Bots Only 3 | . 3 . Max Kills in Single Turn 3 | 1 3 . Gunslinging . | . . . Exploded 3 | . 3 . Melee . | . . . Uniques/NPCs Destroyed . | . . . Combat | -11 -10 -9 -------- Run | Yrd Mat Mat Hostile Shots Fired 47 | . 47 . Missed 13 | . 13 . Hits 34 | . 34 . Projectile 34 | . 34 . Damage Taken 418 | . 418 . Core 45 | . 45 . Absorbed by Shields . | . . . Core Remaining (%) 69 | 100 39 . Volleys Fired 51 | 11 40 . Largest 2 | 2 2 . Hottest 40 | 40 40 . Shots Fired 93 | 22 71 . Gun 84 | 22 62 . Cannon . | . . . Launcher 9 | . 9 . Special . | . . . Kinetic 84 | 22 62 . Thermal . | . . . Explosive 9 | . 9 . Electromagnetic . | . . . Robot Hit Streak 8 | 4 8 . Robot Miss Streak 4 | 2 4 . Penetration Max . | . . . Secondary Targets . | . . . Shots Hit Robots 49 | 12 37 . Core Hits 31 | 6 25 . Critical Kills . | . . . Critical Parts Destroyed . | . . . Critical Strikes . | . . . Melee Attacks . | . . . Impact . | . . . Slashing . | . . . Piercing . | . . . Sneak Attacks . | . . . Combat Hostiles . | . . . Follow-up Attacks . | . . . Damage Inflicted 1068 | 121 947 . Guns 492 | 121 371 . Cannons . | . . . Explosions 550 | . 550 . Melee . | . . . Ramming 26 | . 26 . Kinetic 492 | 121 371 . Thermal . | . . . Explosive 550 | . 550 . Electromagnetic . | . . . Impact . | . . . Slashing . | . . . Piercing . | . . . Highest Corruption . | . . . Average Corruption . | . . . Corruption Purged . | . . . Corruption Blocked . | . . . Overload Shots . | . . . Overflow Damage . | . . . Projectiles . | . . . Explosions . | . . . Melee . | . . . Knockbacks . | . . . Impact . | . . . Kinetic . | . . . Secondary . | . . . Self-Inflicted Damage . | . . . Shots . | . . . Rammed 3 | . 3 . Targets Rammed 5 | . 5 . Kicked . | . . . Crushed 2 | . 2 . Highest Temperature 18 | . 18 . Average Temperature 7 | . 7 . Received Heat Transfer 228 | . 228 . Siege Activations . | . . . Martial Activations . | . . . Shielding Activations . | . . . Robots Disrupted . | . . . Combat Hostiles . | . . . Robots Corrupted . | . . . Combat Hostiles . | . . . Parts Fried . | . . . Impact Corruptions . | . . . Robots Melted . | . . . Combat Hostiles . | . . . Parts Melted . | . . . Heat Transferred . | . . . Parts Sabotaged . | . . . Parts Stolen . | . . . Parts Stripped . | . . . Power Chain Reactions . | . . . Alert | -11 -10 -9 ------- Run | Yrd Mat Mat Maximum Alert Level 1 | . 1 . Low Security (%) 94 | 100 93 100 Level 1 5 | . 6 . Level 2 . | . . . Level 3 . | . . . Level 4 . | . . . Level 5 . | . . . High Security . | . . . Max Security . | . . . Peak Influence 217 | 10 217 45 Initial 45 | . . 45 Average 73 | 1 81 43 Influence Increases 441 | 20 408 13 Destroy 0b10 Robot/C 220 | . 220 . Destroy 0b10 Robot/NC 45 | 20 25 . Destroy Leader 64 | . 64 . Successful Hack 25 | . 12 13 Disable Machine 30 | . 30 . Destroy Structure 57 | . 57 . Influence Decreases 393 | 20 299 74 Entered New Map 64 | . . 64 Time Decay 319 | 20 289 10 Lost Part 10 | . 10 . Squads Dispatched 3 | . 3 . Investigation . | . . . Extermination . | . . . Reinforcement 3 | . 3 . Assault . | . . . Garrison . | . . . Intercept . | . . . Searches Triggered . | . . . Construction Impeded . | . . . Haulers Reinforced . | . . . Active Scanning Responses . | . . . Cargo Convoy Interrupts . | . . . Stealth | -11 -10 -9 --------- Run | Yrd Mat Mat Distress Signals . | . . . Communications Jammed . | . . . Distress Signals . | . . . Times Spotted 19 | . 19 . Peak Tracking Total 4 | . 4 . Tactical Retreats . | . . . Traps | -11 -10 -9 ------- Run | Yrd Mat Mat Traps Triggered . | . . . Indirectly . | . . . Trap Hack Attempts . | . . . Triggered . | . . . Disarmed . | . . . Reprogrammed . | . . . Reused . | . . . Traps Extracted . | . . . Installed . | . . . Triggered . | . . . Machines | -11 -10 -9 ---------- Run | Yrd Mat Mat Machines Disabled 2 | . 2 . Max in Single Turn 2 | . 2 . Machines Repaired . | . . . Machines Dismantled . | . . . Machines Sabotaged . | . . . Overloaded Fab Kills . | . . . Hacking | -11 -10 -9 --------- Run | Yrd Mat Mat Machines Accessed 4 | . 3 1 Terminals 3 | . 2 1 Fabricators . | . . . Repair Stations 1 | . 1 . Recycling Units . | . . . Scanalyzers . | . . . Garrison Access . | . . . Total Hacks 7 | . 5 2 Successful 5 | . 3 2 Failed 2 | . 2 . Catastrophic . | . . . Database Lockouts . | . . . Manual 3 | . 1 2 Terminals 6 | . 4 2 Fabricators . | . . . Repair Stations 1 | . 1 . Recycling Units . | . . . Scanalyzers . | . . . Garrison Access . | . . . Terminal Hacks 4 | . 3 1 Prototype ID Bank 1 | . 1 . Branch Access Points 1 | . . 1 Hauler Manifests 1 | . 1 . Registered Components 1 | . 1 . Fabricator Hacks . | . . . Repair Station Hacks . | . . . Recycling Unit Hacks . | . . . Scanalyzer . | . . . Garrison Access Hacks . | . . . Unauthorized Hacks 1 | . . 1 Terminals 1 | . . 1 Botnet 1 | . . 1 Fabricators . | . . . Repair Stations . | . . . Recycling Units . | . . . Scanalyzers . | . . . Garrison Access . | . . . Data Cores Recovered . | . . . Used . | . . . Hacking Detections 1 | . 1 . Full Trace Events . | . . . Feedback Events . | . . . Feedback Blocked . | . . . Robot Schematics Acquired . | . . . Robots Built . | . . . Authchips . | . . . Time . | . . . Total Robot Build Rating . | . . . Part Schematics Acquired . | . . . Parts Built . | . . . Authchips . | . . . Time . | . . . Total Part Build Rating . | . . . Part Studies Acquired . | . . . Parts Repaired . | . . . Time . | . . . Parts Recycled . | . . . Recycled Matter . | . . . Retrieved Matter . | . . . Retrieved Components . | . . . Parts Scanalyzed . | . . . Part Schematics Acquired . | . . . Parts Damaged . | . . . Bothacking | -11 -10 -9 ------------ Run | Yrd Mat Mat Used RIF Installer . | . . . Robots Hacked . | . . . Non-combat . | . . . Combat . | . . . Robot Hacks Applied . | . . . Relay Couplers Released . | . . . Fabnet Peak Effective % . | . . . Robots Rewired . | . . . Allies Hacked . | . . . Hacks Repelled . | . . . Allies | -11 -10 -9 -------- Run | Yrd Mat Mat Total Allies . | . . . Largest Group . | . . . Highest-Rated Group . | . . . Highest-Rated Ally . | . . . Total Orders . | . . . Ally Attacks . | . . . Total Damage . | . . . Kills . | . . . Allies Corrupted . | . . . Allies Melted . | . . . X0-1V1 Amusement Gains 21 | . 16 5 Bad Acts 1 | . 1 . Intel | -11 -10 -9 ------- Run | Yrd Mat Mat Active Infowar (turns) 780 | 56 724 . Terrain 184 | 56 128 . Seismic 738 | 14 724 . Robot Analysis Total . | . . . Derelict Logs Recovered . | . . . Drone Launches . | . . . Drone Recoveries . | . . . Exploration | -11 -10 -9 ------------- Run | Yrd Mat Mat Turns Passed 1182 | 120 1040 22 Spaces Moved 583 | 49 522 12 Core 3 | 3 . . Treads 580 | 46 522 12 Legs . | . . . Wheels . | . . . Hover . | . . . Flight . | . . . Fastest Speed 50 | 50 160 160 Average Speed 159 | 153 160 160 Slowest Speed 160 | 160 160 160 Overloaded Moves . | . . . Propulsion Burnouts . | . . . Robots Hopped . | . . . Potential Cave-ins . | . . . Cave-ins Triggered . | . . . Exploration Rate (%) 32 | 3 90 5 Regions Visited 2 Branch Regions . Pre-discovered Areas . | . . . Known Exits Taken . | . . . Unknown Exits Taken 2 | 1 1 . Scrap Searched . | . . . Spaces Dug . | . . . Terrain Destroyed 54 | . 54 . Melee . | . . . Projectile . | . . . AOE 54 | . 54 . Terrain Rammed . | . . . Walls Destroyed . | . . . Machines Disabled . | . . . Actions | -11 -10 -9 --------- Run | Yrd Mat Mat Total 740 | 71 655 14 Wait 66 | . 66 . Move 581 | 48 521 12 Hop . | . . . Pick Up 13 | 3 10 . Fast Attach 8 | 7 1 . Attach 2 | . . 2 Detach . | . . . Swap 11 | 1 10 . Drop 3 | 1 2 . Fire 51 | 11 40 . Melee . | . . . Ram . | . . . Kick . | . . . Crush 5 | . 5 . Escape Stasis . | . . . Rewire . | . . . Trap . | . . . Miscellaneous . | . . . Route ------- -11/Scrapyard -10/Materials (discovered 4 exits: *Mat x2 / [*Min] / [*Sub]) -9/Materials (discovered 3 exits: Min / Sto x2) History --------- Turn | Location | Event 19 | -11/Scrapyard | Discovered new exit (range 16) 121 | -11/Scrapyard | Entered Materials 308 | -10/Materials | Build established: Mutant 347 | -10/Materials | Discovered new exit (range 11) 484 | -10/Materials | Discovered new exit (range 15) 702 | -10/Materials | Discovered new exit (range 7) 776 | -10/Materials | Discovered new exit (range 7) 843 | -10/Materials | Made a sacrifice at D.C.S.S. Altar Unit 844 | -10/Materials | Core integrity fell below 50% 1161 | -10/Materials | Entered another Materials area 1161 | -9/Materials | Evolved 2 slots: Propulsion x1, Weapon x1 1183 | -9/Materials | Identified exit to Mines 1183 | -9/Materials | Identified exit to Storage 1183 | -9/Materials | Self-destructed Last Messages --------------- 01099_ Slammed into W-16 Scout. 01113_ Acquired 27 matter. 01142_ Connecting with Repair Station... PARAMETERS=PROPULSION+1,WEAPON+1 01161_ X0-1V1 is interested. LOCATION=UNKNOWN GOAL=ESCAPE 01183_ Connecting with Terminal... 01183_ Current location identified: Materials >>Access(Branch) Found 3 branch access points: (49,48) Mines (10,17) Storage (93,26) Storage Map updated. >>Trojan(Botnet) Trojan loaded successfully. Testing... Terminal linked with 0 systems. Awaiting botnet instructions. Map ----- +----------------------------------------------------+ | ?????????????????????>???????????????????????????? | | ?????????????????????????????????????????????????? | | ?????????????????????????????????????????????????? | | ?????????????????????????????????????????????????? | | ?????????????????????????????????????????????????? | | ?????????????????????????????????????????????????? | | ?????????????????????????????????????????????????? | | ?????????????????????????????????????????????????? | | ?????????????????????????????????????????????????? | | ?????????????????????????????????????????????????? | | ?????????????????????????????????????????????????? | | ?????????????????????????????????????????????????? | | ?????????????????????????????????????????????????? | | ?????????????????????????????????????????????????? | | ?????????????????????????????????????????????????? | | ?????????????????????????????????????????????????? | | ???????????????####?#????????????????????????????? | | ????????????####"T"## ???????????????????????????? | | ??????????? ?????????????????????????? | | ??????????? #????????????????????????? | | ?????????? ""#????????????????????????? | | ??????????? T"#????????????????????????? | | ?????????? ""####+####+####???????????? | | ?????????? # ????????????? | | ????????? # T """ ??????????????? | | ????????????? #@ """ ??????????????? | | ????????????????????# + """ ??????????????? | | ????????????????????# # ! #???????????? | | ????????????????????# ##############???????????? | | ????????????????????# # #??????????????? | | ????????????????????# # #??????????????? | | ????????????????????# # #??????????????? | | ????????????????????# # #??????????????? | | ????????????????????# + #??????????????? | | ????????????????????# # #??????????????? | | ????????????????????# # #??????????????? | | ????????????????????# # #??????????????? | | ????????????????????###############??????????????? | | ?????????????????????????????????????????????????? | | ?????????????????????????????????????????????????? | | ?????????????????????????????????????????????????? | | ?????????????????????????????????????????????????? | | ?????????????????????????????????????????????????? | | ?????????????????????????????????????????????????? | | ?????????????????????????????????????????????????? | | ?????????????????????????????????????????????????? | | ?????????????????????????????????????????????????? | | ?????????????????????????????????????????????????? | | ?????????????????????????????????????????????????? | | ?????????????????????????????????????????????????? | +----------------------------------------------------+ Best States ------------- Heat Dissipation 28 Energy Generation 10 Energy Capacity 250 Matter Stores 300 Matter Capacity 300 Sight Range 16 Terrain Scan Range 16 Terrain Scan Density 10 Evasion (%) 40 Recoil Reduction 3 Item Schematics ----------------- None Robot Schematics ------------------ None Fabricated ------------ Nothing Repaired ---------- Nothing Studied --------- None Alien Tech Used ----------------- None Achievements -------------- None Challenges ------------ None Game ------ Seed GravitonSpreadWand Manual? 0 Play Time 00:05:56 Cumulative 1322.3 hours Start 2026.07.02 @ 19:26:34 End 2026.07.02 @ 19:32:05 Sessions 1 Manual Loads 0 Difficulty Rogue Special Mode None Game No. 417 Rogue 415 Adventurer 2 Explorer 0 Win Type - Total 114 Types 33/28/26/2/1/1/17/2/1/3 Lore% 98 Gallery% 92 Achievement% 91 Wizard Run 0 Options --------- Layout 0 ASCII 0 Keyboard 1 Movement Numpad Keybinds 0 Fullscreen 1 Font 24/Smallcaps Map View 76x50 Zoom Use 0% Tactical HUD 1 Map Filters NONE Filters NONE Steam 1 RUN: 4a39b393-9e72-4bc9-9583-fd563ab5543d